[Event "Asian Amateur Rapid 2024"]
[Site "Al Ain"]
[Date "2024.12.15"]
[Round "6.33"]
[White "Muhammad Saifan Noushad Ibrahi"]
[Black "Shafaghati, Rastin"]
[Result "1-0"]
[ECO "C02"]
[WhiteElo "1534"]
[BlackElo "1575"]
[Annotator "NA COMBH"]
[PlyCount "95"]
[EventDate "2024.12.15"]
[EventType "swiss"]
[EventCountry "UAE"]
[SourceTitle "playchess.com"]
[Source "ChessBase"]
[SourceQuality "1"]
[TimeControl "900+10"]

1. e4 {[%emt 0:00:03]} e6 {[%emt 0:00:01]} 2. d4 {[%emt 0:00:05]} d5 {[%emt 0:00:02]} 3. e5 {[%emt 0:00:02]} c5 {[%emt 0:00:01]} 4. c3 {[%emt 0:00:01]} Nc6 {[%emt 0:00:02]} 5. Nf3 {[%emt 0:00:02]} Qb6 {[%emt 0:00:02]} 6. Bd3 {[%emt 0:00:12]} cxd4 {[%emt 0:00:02]} 7. cxd4 {[%emt 0:00:02]} Bd7 {[%emt 0:00:02]} 8. Bc2 {[%emt 0:00:16]} Nb4 {[%emt 0:00:03]} 9. Nc3 {[%emt 0:00:40]} Nxc2+ {[%emt 0:00:03]} 10. Qxc2 {[%emt 0:00:03]} Rc8 {[%emt 0:00:04]} 11. O-O {[%emt 0:00:24]} Bb4 {[%emt 0:00:19]} 12. Bd2 {[%emt 0:00:26]} Ne7 {[%emt 0:00:15]} 13. a3 {[%emt 0:00:27]} Bxc3 {[%emt 0:00:07]} 14. Bxc3 {[%emt 0:00:04]} Nf5 {[%emt 0:00:42]} 15. Qd2 {[%emt 0:00:14]} O-O {[%emt 0:01:25]} 16. Bb4 {[%emt 0:00:16]} Rfe8 {[%emt 0:00:04]} 17. Rfc1 {[%emt 0:00:06]} Rc6 {[%emt 0:00:28]} 18. Rxc6 {[%emt 0:00:44]} Bxc6 {[%emt 0:00:12]} 19. Rc1 {[%emt 0:00:02]} Qc7 {[%emt 0:05:36]} 20. a4 {[%emt 0:01:07]} Qd7 {[%emt 0:00:38]} 21. a5 {[%emt 0:00:06]} b6 {[%emt 0:01:43]} 22. axb6 {[%emt 0:00:16]} axb6 {[%emt 0:00:02]} 23. Qc3 {[%emt 0:00:03]} Rc8 {[%emt 0:00:19]} 24. Ba3 {[%emt 0:00:38]} Bb7 {[%emt 0:02:54]} 25. Qd2 {[%emt 0:00:03]} Rxc1+ {[%emt 0:00:13]} 26. Qxc1 {[%emt 0:00:01]} Qc6 {[%emt 0:00:02]} 27. Qxc6 {[%emt 0:00:13]} Bxc6 {[%emt 0:00:02]} 28. Kf1 {[%emt 0:00:11]} Bb5+ {[%emt 0:00:34]} 29. Ke1 {[%emt 0:00:02]} h5 {[%emt 0:00:25]} 30. Kd2 {[%emt 0:00:32]} Bf1 {[%emt 0:00:04]} 31. g3 {[%emt 0:00:14]} Bg2 {[%emt 0:00:35]} 32. Ne1 {[%emt 0:00:01]} Be4 {[%emt 0:00:02]} 33. Kc3 {[%emt 0:00:25]} Bb1 {[%emt 0:00:24]} 34. b3 {[%emt 0:00:15]} f6 {[%emt 0:00:13]} 35. Kb2 {[%emt 0:00:33]} Be4 {[%emt 0:00:28]} 36. f3 {[%emt 0:00:01]} Nxd4 {[%emt 0:00:17]} 37. fxe4 {[%emt 0:00:03]} fxe5 {[%emt 0:00:06]} 38. exd5 {[%emt 0:00:02]} exd5 {[%emt 0:00:02]} 39. Bd6 {[%emt 0:00:16]} Nc6 {[%emt 0:00:34]} 40. Nd3 {[%emt 0:00:25]} e4 {[%emt 0:00:06]} 41. Nb4 {[%emt 0:00:01]} Nxb4 {[%emt 0:00:10]} 42. Bxb4 {[%emt 0:00:01]} Kf7 {[%emt 0:00:11]} 43. Kc3 {[%emt 0:00:01]} Ke6 {[%emt 0:00:07]} 44. Kd4 {[%emt 0:00:02]} b5 {[%emt 0:00:07]} 45. Kc5 {[%emt 0:00:27]} Ke5 {[%emt 0:00:04]} 46. Bc3+ {[%emt 0:00:02]} Ke6 {[%emt 0:00:05]} 47. Kxb5 {[%emt 0:00:08]} e3 {[%emt 0:00:03] Check Result:128.49} 48. Kc5 {[%emt 0:00:08]} 1-0

[Event "Asian Amateur Rapid 2024"]
[Site "Al Ain"]
[Date "2024.12.15"]
[Round "6.34"]
[White "Abdulla Younes Alkhemeiri"]
[Black "Maleki, Alimohammad"]
[Result "1-0"]
[ECO "D53"]
[WhiteElo "1547"]
[BlackElo "1488"]
[Annotator "NA COMBH"]
[PlyCount "97"]
[EventDate "2024.12.15"]
[EventType "swiss"]
[EventCountry "UAE"]
[SourceTitle "playchess.com"]
[Source "ChessBase"]
[SourceQuality "1"]
[TimeControl "900+10"]

1. d4 {[%emt 0:00:01]} d5 {[%emt 0:00:02]} 2. c4 {[%emt 0:00:02]} c6 {[%emt 0:00:05]} 3. Nc3 {[%emt 0:00:05]} Nf6 {[%emt 0:00:03]} 4. Bg5 {[%emt 0:00:08]} e6 {[%emt 0:00:46]} 5. e3 {[%emt 0:00:05]} Nbd7 {[%emt 0:00:35]} 6. Nf3 {[%emt 0:00:07]} Be7 {[%emt 0:00:20]} 7. cxd5 {[%emt 0:00:09]} Nxd5 {[%emt 0:00:35]} 8. Bxe7 {[%emt 0:00:03]} Qxe7 {[%emt 0:00:38]} 9. e4 {[%emt 0:00:21]} N5f6 {[%emt 0:01:03]} 10. e5 {[%emt 0:00:04]} Nd5 {[%emt 0:00:08]} 11. Nxd5 {[%emt 0:00:02]} cxd5 {[%emt 0:00:52]} 12. Bd3 {[%emt 0:00:25]} O-O {[%emt 0:01:38]} 13. O-O {[%emt 0:00:09]} b6 {[%emt 0:01:18]} 14. Nd2 {[%emt 0:00:07]} a5 {[%emt 0:00:42]} 15. Bc2 {[%emt 0:00:12]} Qb4 {[%emt 0:00:48]} 16. Nb3 {[%emt 0:01:12]} Ba6 {[%emt 0:00:48]} 17. Bd3 {[%emt 0:01:04]} a4 {[%emt 0:00:16]} 18. Bxa6 {[%emt 0:00:18]} Rxa6 {[%emt 0:00:07]} 19. Qd2 {[%emt 0:00:13]} Qb5 {[%emt 0:01:37]} 20. Nc1 {[%emt 0:00:05]} Qa5 {[%emt 0:01:13]} 21. Qxa5 {[%emt 0:00:49]} Rxa5 {[%emt 0:00:01]} 22. b4 {[%emt 0:00:36]} axb3 {[%emt 0:00:21]} 23. Nxb3 {[%emt 0:00:03]} Ra3 {[%emt 0:00:49]} 24. Rfc1 {[%emt 0:01:12]} Rfa8 {[%emt 0:00:01]} 25. h3 {[%emt 0:00:42]} Rxa2 {[%emt 0:00:49]} 26. Rxa2 {[%emt 0:00:12]} Rxa2 {[%emt 0:00:01]} 27. Rc8+ {[%emt 0:00:01]} Nf8 {[%emt 0:00:01]} 28. Rb8 {[%emt 0:00:06]} Ra6 {[%emt 0:00:13]} 29. Kf1 {[%emt 0:00:21]} g6 {[%emt 0:00:08]} 30. Rb7 {[%emt 0:00:04]} h5 {[%emt 0:00:26]} 31. Ke2 {[%emt 0:00:23]} Nh7 {[%emt 0:00:33]} 32. f4 {[%emt 0:00:55]} g5 {[%emt 0:00:02]} 33. g3 {[%emt 0:00:01]} Kg7 {[%emt 0:00:37]} 34. Kd3 {[%emt 0:00:28]} Kg6 {[%emt 0:00:19]} 35. Kc3 {[%emt 0:00:33]} h4 {[%emt 0:01:02]} 36. gxh4 {[%emt 0:00:21]} gxf4 {[%emt 0:00:04]} 37. Kd3 {[%emt 0:00:03]} f6 {[%emt 0:00:25]} 38. h5+ {[%emt 0:01:17]} Kh6 {[%emt 0:00:05]} 39. Ke2 {[%emt 0:00:33]} fxe5 {[%emt 0:00:17]} 40. dxe5 {[%emt 0:00:01]} Ng5 {[%emt 0:00:04]} 41. h4 {[%emt 0:00:33]} Ra2+ {[%emt 0:00:52]} 42. Kf1 {[%emt 0:00:02]} Ne4 {[%emt 0:00:48]} 43. Rxb6 {[%emt 0:00:09]} Kxh5 {[%emt 0:00:23]} 44. Rxe6 {[%emt 0:00:02]} Ng3+ {[%emt 0:00:07]} 45. Ke1 {[%emt 0:00:30]} f3 {[%emt 0:00:19]} 46. Rf6 {[%emt 0:00:01]} Kg4 {[%emt 0:00:09]} 47. Nd2 {[%emt 0:00:49]} Rxd2 {[%emt 0:00:18]} 48. Kxd2 {[%emt 0:00:03]} Ne4+ {[%emt 0:00:01] Check Result:#22} 49. Ke3 {[%emt 0:00:07]} 1-0

[Event "Asian Amateur Rapid 2024"]
[Site "Al Ain"]
[Date "2024.12.15"]
[Round "6.36"]
[White "Abdulla Ateeq Alremaeithi"]
[Black "Alymjanov, Mekan"]
[Result "1-0"]
[ECO "C60"]
[WhiteElo "1639"]
[BlackElo "1480"]
[Annotator "NA COMBH"]
[PlyCount "33"]
[EventDate "2024.12.15"]
[EventType "swiss"]
[EventCountry "UAE"]
[SourceTitle "playchess.com"]
[Source "ChessBase"]
[SourceQuality "1"]
[TimeControl "900+10"]

1. e4 {[%emt 0:00:03]} e5 {[%emt 0:00:01]} 2. Nf3 {[%emt 0:00:02]} Nc6 {[%emt 0:00:01]} 3. Bb5 {[%emt 0:00:05]} Nge7 {[%emt 0:00:01]} 4. c3 {[%emt 0:00:03]} g6 {[%emt 0:00:01]} 5. O-O {[%emt 0:00:04]} Bg7 {[%emt 0:00:00]} 6. d4 {[%emt 0:00:11]} exd4 {[%emt 0:00:09]} 7. cxd4 {[%emt 0:00:03]} O-O {[%emt 0:00:02]} 8. Nc3 {[%emt 0:00:09]} a6 {[%emt 0:00:05]} 9. Ba4 {[%emt 0:00:03]} b5 {[%emt 0:00:26]} 10. Bb3 {[%emt 0:00:02]} Bb7 {[%emt 0:00:00]} 11. Re1 {[%emt 0:00:07]} d6 {[%emt 0:00:09]} 12. Bg5 {[%emt 0:00:08]} Qd7 {[%emt 0:00:31]} 13. Qd2 {[%emt 0:00:13]} Rfe8 {[%emt 0:00:00]} 14. Bh6 {[%emt 0:00:14]} Bh8 {[%emt 0:00:01]} 15. Ng5 {[%emt 0:00:22]} Nd8 {[%emt 0:00:19]} 16. Qf4 {[%emt 0:00:06]} Ne6 {[%emt 0:00:40] Check Result:?ev?} 17. Qxf7# {[%emt 0:00:55]} 1-0

[Event "Asian Amateur Rapid 2024"]
[Site "Al Ain"]
[Date "2024.12.15"]
[Round "6.37"]
[White "Mohammed Hamad Alkhemeiri"]
[Black "Kalikhan, Abilmansur"]
[Result "1-0"]
[ECO "C01"]
[WhiteElo "1482"]
[BlackElo "1731"]
[Annotator "NA COMBH"]
[PlyCount "101"]
[EventDate "2024.12.15"]
[EventType "swiss"]
[EventCountry "UAE"]
[SourceTitle "playchess.com"]
[Source "ChessBase"]
[SourceQuality "1"]
[TimeControl "900+10"]

1. e4 {[%emt 0:00:02]} e6 {[%emt 0:00:02]} 2. d4 {[%emt 0:00:03]} d5 {[%emt 0:00:01]} 3. exd5 {[%emt 0:00:02]} exd5 {[%emt 0:00:01]} 4. Nf3 {[%emt 0:00:02]} Nf6 {[%emt 0:00:02]} 5. Bg5 {[%emt 0:00:08]} Be7 {[%emt 0:00:03]} 6. Bd3 {[%emt 0:00:04]} c6 {[%emt 0:00:02]} 7. c3 {[%emt 0:00:09]} h6 {[%emt 0:00:02]} 8. Bh4 {[%emt 0:00:04]} Bg4 {[%emt 0:00:34]} 9. Nbd2 {[%emt 0:00:02]} Nbd7 {[%emt 0:00:03]} 10. O-O {[%emt 0:00:05]} O-O {[%emt 0:00:03]} 11. Qc2 {[%emt 0:00:10]} c5 {[%emt 0:00:09]} 12. Bxf6 {[%emt 0:01:18]} Bxf6 {[%emt 0:00:12]} 13. dxc5 {[%emt 0:01:48]} Nxc5 {[%emt 0:00:05]} 14. Bf5 {[%emt 0:00:03]} Bxf5 {[%emt 0:00:14]} 15. Qxf5 {[%emt 0:00:05]} g6 {[%emt 0:00:07]} 16. Qc2 {[%emt 0:00:36]} Re8 {[%emt 0:00:03]} 17. Rfe1 {[%emt 0:00:17]} Qd6 {[%emt 0:00:10]} 18. b4 {[%emt 0:00:37]} Ne6 {[%emt 0:00:25]} 19. Rad1 {[%emt 0:02:12]} Qc7 {[%emt 0:01:20]} 20. c4 {[%emt 0:00:36]} Rac8 {[%emt 0:00:24]} 21. c5 {[%emt 0:00:33]} b6 {[%emt 0:00:11]} 22. Nb3 {[%emt 0:01:39]} Red8 {[%emt 0:00:01]} 23. Rc1 {[%emt 0:02:50]} d4 {[%emt 0:00:33]} 24. Qd3 {[%emt 0:01:02]} Nf4 {[%emt 0:00:06]} 25. Qd2 {[%emt 0:01:54]} bxc5 {[%emt 0:03:03]} 26. Nxc5 {[%emt 0:01:35]} d3 {[%emt 0:00:19]} 27. Nxd3 {[%emt 0:00:41]} Qb8 {[%emt 0:00:12]} 28. Qxf4 {[%emt 0:00:02]} Rxd3 {[%emt 0:00:32]} 29. Qxf6 {[%emt 0:00:10]} Rxc1 {[%emt 0:00:05]} 30. Rxc1 {[%emt 0:00:02]} Qc7 {[%emt 0:00:10]} 31. Qb2 {[%emt 0:00:18]} Qd7 {[%emt 0:00:06]} 32. h3 {[%emt 0:00:10]} g5 {[%emt 0:00:02]} 33. Ne5 {[%emt 0:00:09]} Rd1+ {[%emt 0:00:01]} 34. Rxd1 {[%emt 0:00:01]} Qxd1+ {[%emt 0:00:01]} 35. Kh2 {[%emt 0:00:03]} Qd6 {[%emt 0:00:05]} 36. g3 {[%emt 0:00:10]} f6 {[%emt 0:00:08]} 37. Nc4 {[%emt 0:00:06]} Qd5 {[%emt 0:00:09]} 38. Qb3 {[%emt 0:00:04]} Kg7 {[%emt 0:00:09]} 39. Ne3 {[%emt 0:00:05]} Qf3 {[%emt 0:00:03]} 40. Qc2 {[%emt 0:00:10]} h5 {[%emt 0:00:18]} 41. Nf5+ {[%emt 0:00:09]} Kf7 {[%emt 0:00:07]} 42. Nd6+ {[%emt 0:00:09]} Kg7 {[%emt 0:00:10]} 43. Qc7+ {[%emt 0:00:04]} Kg6 {[%emt 0:00:05]} 44. Qxa7 {[%emt 0:00:04]} h4 {[%emt 0:00:07]} 45. Qf7+ {[%emt 0:00:21]} Kh6 {[%emt 0:00:10]} 46. Qf8+ {[%emt 0:00:08]} Kh7 {[%emt 0:00:09]} 47. Qe7+ {[%emt 0:00:15]} Kh6 {[%emt 0:00:21]} 48. Nf7+ {[%emt 0:00:18]} Kg6 {[%emt 0:00:48]} 49. Nh8+ {[%emt 0:00:04]} Kf5 {[%emt 0:00:19]} 50. g4+ {[%emt 0:00:07]} Kf4 {[%emt 0:00:04] Check Result:?ev?} 51. Ng6# {[%emt 0:00:05]} 1-0

[Event "Asian Amateur Rapid 2024"]
[Site "Al Ain"]
[Date "2024.12.15"]
[Round "6.38"]
[White "Godhani Maharth"]
[Black "taleb al, ameri"]
[Result "0-1"]
[ECO "A85"]
[WhiteElo "1798"]
[BlackElo "1623"]
[Annotator "NA COMBH"]
[PlyCount "138"]
[EventDate "2024.12.15"]
[EventType "swiss"]
[EventCountry "UAE"]
[SourceTitle "playchess.com"]
[Source "ChessBase"]
[SourceQuality "1"]
[TimeControl "900+10"]

1. d4 {[%emt 0:00:01]} f5 {[%emt 0:00:13]} 2. Nf3 {[%emt 0:00:11]} Nf6 {[%emt 0:00:02]} 3. e3 {[%emt 0:00:02]} e6 {[%emt 0:00:05]} 4. Bd3 {[%emt 0:00:03]} b6 {[%emt 0:00:02]} 5. c4 {[%emt 0:00:04]} Bb7 {[%emt 0:00:02]} 6. Nc3 {[%emt 0:00:02]} a6 {[%emt 0:00:02]} 7. O-O {[%emt 0:00:03]} Be7 {[%emt 0:00:03]} 8. Qe2 {[%emt 0:00:02]} O-O {[%emt 0:00:08]} 9. e4 {[%emt 0:00:02]} fxe4 {[%emt 0:00:03]} 10. Nxe4 {[%emt 0:00:03]} Nc6 {[%emt 0:00:18]} 11. a3 {[%emt 0:00:25]} Na5 {[%emt 0:01:26]} 12. Bd2 {[%emt 0:00:25]} Nb3 {[%emt 0:00:28]} 13. Rad1 {[%emt 0:00:05]} Nxd2 {[%emt 0:00:53]} 14. Nfxd2 {[%emt 0:00:04]} d5 {[%emt 0:00:36]} 15. Ng5 {[%emt 0:00:18]} dxc4 {[%emt 0:02:42]} 16. Bxc4 {[%emt 0:00:08]} Bd5 {[%emt 0:00:14]} 17. Bxd5 {[%emt 0:00:06]} Qxd5 {[%emt 0:00:49]} 18. Qxe6+ {[%emt 0:00:06]} Qxe6 {[%emt 0:00:24]} 19. Nxe6 {[%emt 0:00:05]} Rfc8 {[%emt 0:00:17]} 20. Nc4 {[%emt 0:00:10]} b5 {[%emt 0:00:19]} 21. Ne5 {[%emt 0:00:06]} Bd6 {[%emt 0:00:16]} 22. f4 {[%emt 0:00:07]} Re8 {[%emt 0:00:13]} 23. d5 {[%emt 0:00:10]} Nxd5 {[%emt 0:00:15]} 24. Nxc7 {[%emt 0:00:15]} Bc5+ {[%emt 0:00:16]} 25. Kh1 {[%emt 0:00:07]} Nxc7 {[%emt 0:00:02]} 26. Rc1 {[%emt 0:00:06]} Ne6 {[%emt 0:00:38]} 27. f5 {[%emt 0:00:03]} Bd4 {[%emt 0:00:24]} 28. Nf3 {[%emt 0:00:11]} Bxb2 {[%emt 0:00:09]} 29. Rc2 {[%emt 0:00:07]} Bxa3 {[%emt 0:00:09]} 30. fxe6 {[%emt 0:00:03]} Rxe6 {[%emt 0:00:01]} 31. Nd4 {[%emt 0:00:08]} Rh6 {[%emt 0:00:12]} 32. Rc7 {[%emt 0:00:04]} Rxh2+ {[%emt 0:00:06]} 33. Kg1 {[%emt 0:00:07]} Rh5 {[%emt 0:00:21]} 34. Ne6 {[%emt 0:00:09]} Bb2 {[%emt 0:01:03]} 35. Rf2 {[%emt 0:00:42]} Be5 {[%emt 0:00:24]} 36. Rcf7 {[%emt 0:00:14]} Bf6 {[%emt 0:00:56]} 37. Rb7 {[%emt 0:00:08]} Re8 {[%emt 0:01:54]} 38. Re2 {[%emt 0:00:30]} Re5 {[%emt 0:00:09]} 39. Rxe5 {[%emt 0:00:07]} Bxe5 {[%emt 0:00:03]} 40. Nc7 {[%emt 0:00:11]} Bxc7 {[%emt 0:00:13]} 41. Rxc7 {[%emt 0:00:02]} Ra8 {[%emt 0:00:05]} 42. Rb7 {[%emt 0:00:02]} a5 {[%emt 0:00:08]} 43. Rxb5 {[%emt 0:00:02]} a4 {[%emt 0:00:01]} 44. Rb2 {[%emt 0:00:01]} a3 {[%emt 0:00:01]} 45. Ra2 {[%emt 0:00:02]} Kf7 {[%emt 0:00:01]} 46. Kh2 {[%emt 0:00:01]} Ke6 {[%emt 0:00:02]} 47. Kg3 {[%emt 0:00:09]} Kd5 {[%emt 0:00:01]} 48. Kf3 {[%emt 0:00:03]} Kc4 {[%emt 0:00:01]} 49. Ke3 {[%emt 0:00:02]} Kb3 {[%emt 0:00:01]} 50. Rf2 {[%emt 0:00:02]} a2 {[%emt 0:00:03]} 51. Rf1 {[%emt 0:00:03]} a1=Q {[%emt 0:00:07]} 52. Rxa1 {[%emt 0:00:02]} Rxa1 {[%emt 0:00:02]} 53. Kf4 {[%emt 0:00:01]} Ra5 {[%emt 0:00:04]} 54. Kg4 {[%emt 0:00:02]} Kc3 {[%emt 0:00:02]} 55. Kh4 {[%emt 0:00:01]} Kd3 {[%emt 0:00:02]} 56. g4 {[%emt 0:00:02]} Ke4 {[%emt 0:00:02]} 57. g5 {[%emt 0:00:01]} g6 {[%emt 0:00:02]} 58. Kg4 {[%emt 0:00:01]} Ke5 {[%emt 0:00:03]} 59. Kh4 {[%emt 0:00:02]} Kf5 {[%emt 0:00:01]} 60. Kh3 {[%emt 0:00:01]} Kxg5 {[%emt 0:00:03]} 61. Kg2 {[%emt 0:00:02]} Ra3 {[%emt 0:00:03]} 62. Kf2 {[%emt 0:00:01]} Kf4 {[%emt 0:00:01]} 63. Ke2 {[%emt 0:00:02]} h5 {[%emt 0:00:02]} 64. Kf2 {[%emt 0:00:01]} Ra2+ {[%emt 0:00:01]} 65. Kg1 {[%emt 0:00:01]} Kg3 {[%emt 0:00:03]} 66. Kf1 {[%emt 0:00:01]} h4 {[%emt 0:00:05]} 67. Ke1 {[%emt 0:00:02]} h3 {[%emt 0:00:02]} 68. Kd1 {[%emt 0:00:02]} h2 {[%emt 0:00:01]} 69. Kc1 {[%emt 0:00:01] Check Result:?ev?} h1=Q# {[%emt 0:00:05]} 0-1

[Event "Asian Amateur Rapid 2024"]
[Site "Al Ain"]
[Date "2024.12.15"]
[Round "6.41"]
[White "Muhammad Saleem, Hamad"]
[Black "Mohammed Saeed Alshamsi"]
[Result "0-1"]
[ECO "C50"]
[WhiteElo "1577"]
[BlackElo "1535"]
[Annotator "NA COMBH"]
[PlyCount "54"]
[EventDate "2024.12.15"]
[EventType "swiss"]
[EventCountry "UAE"]
[SourceTitle "playchess.com"]
[Source "ChessBase"]
[SourceQuality "1"]
[TimeControl "900+10"]

1. e4 {[%emt 0:00:03]} e5 {[%emt 0:00:01]} 2. Nf3 {[%emt 0:00:02]} Nc6 {[%emt 0:00:02]} 3. Bc4 {[%emt 0:00:02]} Bc5 {[%emt 0:00:03]} 4. Nc3 {[%emt 0:00:01]} Nf6 {[%emt 0:00:02]} 5. d3 {[%emt 0:00:02]} h6 {[%emt 0:00:02]} 6. O-O {[%emt 0:00:03]} d6 {[%emt 0:00:11]} 7. h3 {[%emt 0:00:01]} Na5 {[%emt 0:00:05]} 8. Ne2 {[%emt 0:00:21]} Nxc4 {[%emt 0:00:04]} 9. dxc4 {[%emt 0:00:05]} Nxe4 {[%emt 0:00:04]} 10. Be3 {[%emt 0:00:12]} Qf6 {[%emt 0:00:36]} 11. Bxc5 {[%emt 0:00:23]} Nxc5 {[%emt 0:00:06]} 12. Ng3 {[%emt 0:00:03]} O-O {[%emt 0:00:09]} 13. b4 {[%emt 0:00:34]} Ne6 {[%emt 0:00:06]} 14. Ne4 {[%emt 0:00:02]} Qg6 {[%emt 0:00:08]} 15. Re1 {[%emt 0:00:39]} Nf4 {[%emt 0:00:02]} 16. Ng3 {[%emt 0:00:04]} a5 {[%emt 0:00:42]} 17. b5 {[%emt 0:00:12]} Be6 {[%emt 0:00:06]} 18. Qd2 {[%emt 0:01:34]} Bxc4 {[%emt 0:00:08]} 19. Qc3 {[%emt 0:00:01]} Bd5 {[%emt 0:00:12]} 20. Rad1 {[%emt 0:00:59]} Bxf3 {[%emt 0:00:22]} 21. Qxf3 {[%emt 0:00:03]} Qxc2 {[%emt 0:00:26]} 22. Qxb7 {[%emt 0:00:04]} Nd3 {[%emt 0:00:41]} 23. Rf1 {[%emt 0:00:45]} Nf4 {[%emt 0:00:29]} 24. Rfe1 {[%emt 0:00:14]} Rfb8 {[%emt 0:00:22]} 25. Qc6 {[%emt 0:00:06]} Qxc6 {[%emt 0:00:05]} 26. bxc6 {[%emt 0:00:02]} Rb6 {[%emt 0:00:05]} 27. Rc1 {[%emt 0:01:00] Check Result:-6.91} Nd3 {[%emt 0:00:00]} 0-1

[Event "Asian Amateur Rapid 2024"]
[Site "Al Ain"]
[Date "2024.12.15"]
[Round "6.42"]
[White "Al Riyami, Saeed"]
[Black "Alajati, Abdl Alrahman."]
[Result "0-1"]
[ECO "D00"]
[WhiteElo "1426"]
[BlackElo "1555"]
[Annotator "NA COMBH"]
[PlyCount "94"]
[EventDate "2024.12.15"]
[EventType "swiss"]
[EventCountry "UAE"]
[SourceTitle "playchess.com"]
[Source "ChessBase"]
[SourceQuality "1"]
[TimeControl "900+10"]

1. d4 {[%emt 0:00:02]} d5 {[%emt 0:00:22]} 2. Nc3 {[%emt 0:00:02]} Bf5 {[%emt 0:00:24]} 3. Bf4 {[%emt 0:00:12]} a6 {[%emt 0:00:39]} 4. e3 {[%emt 0:00:06]} Nc6 {[%emt 0:00:05]} 5. Bd3 {[%emt 0:00:06]} Bg6 {[%emt 0:00:29]} 6. Qf3 {[%emt 0:01:10]} Bxd3 {[%emt 0:00:18]} 7. cxd3 {[%emt 0:00:06]} Nf6 {[%emt 0:00:06]} 8. e4 {[%emt 0:00:10]} Nxd4 {[%emt 0:00:14]} 9. Qd1 {[%emt 0:01:05]} e6 {[%emt 0:00:31]} 10. Nf3 {[%emt 0:00:18]} dxe4 {[%emt 0:00:35]} 11. dxe4 {[%emt 0:00:13]} Nxf3+ {[%emt 0:00:25]} 12. Qxf3 {[%emt 0:00:11]} Bb4 {[%emt 0:00:30]} 13. O-O {[%emt 0:00:02]} O-O {[%emt 0:00:05]} 14. a3 {[%emt 0:00:23]} Bxc3 {[%emt 0:00:07]} 15. bxc3 {[%emt 0:00:02]} h6 {[%emt 0:00:30]} 16. Rfd1 {[%emt 0:00:12]} Qe7 {[%emt 0:00:04]} 17. e5 {[%emt 0:00:04]} Nd5 {[%emt 0:00:06]} 18. c4 {[%emt 0:00:11]} Nxf4 {[%emt 0:00:14]} 19. Qxf4 {[%emt 0:00:03]} Rad8 {[%emt 0:00:07]} 20. Qe4 {[%emt 0:00:13]} c6 {[%emt 0:00:21]} 21. f4 {[%emt 0:00:25]} Rxd1+ {[%emt 0:00:24]} 22. Rxd1 {[%emt 0:00:05]} Rd8 {[%emt 0:00:05]} 23. Rxd8+ {[%emt 0:00:14]} Qxd8 {[%emt 0:00:02]} 24. f5 {[%emt 0:00:02]} Qd1+ {[%emt 0:00:25]} 25. Kf2 {[%emt 0:00:01]} Qd2+ {[%emt 0:00:05]} 26. Kf3 {[%emt 0:00:01]} Qc3+ {[%emt 0:00:07]} 27. Kf4 {[%emt 0:00:04]} exf5 {[%emt 0:00:19]} 28. Kxf5 {[%emt 0:00:01]} Qxa3 {[%emt 0:00:17]} 29. e6 {[%emt 0:00:02]} Qc5+ {[%emt 0:00:08]} 30. Kf4 {[%emt 0:00:05]} Qf2+ {[%emt 0:00:17]} 31. Kg4 {[%emt 0:00:03]} f5+ {[%emt 0:00:38]} 32. Qxf5 {[%emt 0:00:06]} Qxf5+ {[%emt 0:00:02]} 33. Kxf5 {[%emt 0:00:01]} Kf8 {[%emt 0:00:03]} 34. Ke5 {[%emt 0:00:01]} Ke7 {[%emt 0:11:46]} 35. g4 {[%emt 0:14:58]} a5 {[%emt 0:00:10]} 36. h4 {[%emt 0:00:00]} a4 {[%emt 0:00:00]} 37. g5 {[%emt 0:00:00]} a3 {[%emt 0:00:00]} 38. gxh6 {[%emt 0:00:00]} gxh6 {[%emt 0:00:00]} 39. c5 {[%emt 0:00:00]} a2 {[%emt 0:00:00]} 40. h5 {[%emt 0:00:00]} a1=Q+ {[%emt 0:00:00]} 41. Kf5 {[%emt 0:00:00]} Qf1+ {[%emt 0:00:00]} 42. Kg6 {[%emt 0:00:00]} Qf6+ {[%emt 0:00:00]} 43. Kh7 {[%emt 0:00:00]} Qf1 {[%emt 0:00:00]} 44. Kxh6 {[%emt 0:00:00]} Qg1 {[%emt 0:00:00]} 45. Kh7 {[%emt 0:00:00]} Kxe6 {[%emt 0:00:00]} 46. h6 {[%emt 0:00:00]} Kf7 {[%emt 0:00:00]} 47. Kh8 {[%emt 0:00:00] Check Result:?ev?} Qg8# {[%emt 0:02:00]} 0-1

[Event "Asian Amateur Rapid 2024"]
[Site "Al Ain"]
[Date "2024.12.15"]
[Round "6.43"]
[White "Khabdes, Bakytzhan"]
[Black "KHALID ALHAWAY"]
[Result "1-0"]
[ECO "A00"]
[WhiteElo "1437"]
[BlackElo "1529"]
[Annotator "NA COMBH"]
[PlyCount "69"]
[EventDate "2024.12.15"]
[EventType "swiss"]
[EventCountry "UAE"]
[SourceTitle "playchess.com"]
[Source "ChessBase"]
[SourceQuality "1"]
[TimeControl "900+10"]

1. f3 {[%emt 0:00:01]} e5 {[%emt 0:00:02]} 2. Kf2 {[%emt 0:00:14]} Bc5+ {[%emt 0:00:16]} 3. e3 {[%emt 0:00:02]} d5 {[%emt 0:00:07]} 4. a3 {[%emt 0:00:09]} Nf6 {[%emt 0:00:20]} 5. g3 {[%emt 0:00:02]} e4 {[%emt 0:00:04]} 6. Bh3 {[%emt 0:00:08]} Bxh3 {[%emt 0:00:21]} 7. Nxh3 {[%emt 0:00:02]} Nc6 {[%emt 0:00:08]} 8. b4 {[%emt 0:00:02]} Bb6 {[%emt 0:00:03]} 9. Bb2 {[%emt 0:00:02]} exf3 {[%emt 0:00:03]} 10. Qxf3 {[%emt 0:00:02]} d4 {[%emt 0:00:09]} 11. Re1 {[%emt 0:00:07]} Ne5 {[%emt 0:00:09]} 12. Qxb7 {[%emt 0:00:22]} Nfg4+ {[%emt 0:00:21]} 13. Kg2 {[%emt 0:00:12]} dxe3 {[%emt 0:00:11]} 14. d4 {[%emt 0:00:25]} c6 {[%emt 0:01:34]} 15. dxe5 {[%emt 0:00:07]} Qd5+ {[%emt 0:00:13]} 16. Kf1 {[%emt 0:02:18]} Qf3+ {[%emt 0:00:06]} 17. Kg1 {[%emt 0:00:08]} e2+ {[%emt 0:00:26]} 18. Qxb6 {[%emt 0:00:03]} axb6 {[%emt 0:00:01]} 19. Nc3 {[%emt 0:00:03]} Rd8 {[%emt 0:00:51]} 20. Rxe2 {[%emt 0:00:02]} Rd5 {[%emt 0:00:20]} 21. Rf1 {[%emt 0:00:02]} Nf2 {[%emt 0:01:20]} 22. Rfxf2 {[%emt 0:00:06]} Qh5 {[%emt 0:00:01]} 23. Nf4 {[%emt 0:00:04]} Qg4 {[%emt 0:00:37]} 24. Ncxd5 {[%emt 0:00:07]} cxd5 {[%emt 0:00:04]} 25. Nxd5 {[%emt 0:00:04]} O-O {[%emt 0:00:16]} 26. e6 {[%emt 0:00:02]} h5 {[%emt 0:00:38]} 27. exf7+ {[%emt 0:00:07]} Kh7 {[%emt 0:00:20]} 28. Re8 {[%emt 0:00:24]} Qd1+ {[%emt 0:00:25]} 29. Rf1 {[%emt 0:00:01]} Qxd5 {[%emt 0:00:40]} 30. Rxf8 {[%emt 0:00:06]} Qg5 {[%emt 0:00:55]} 31. Rh8+ {[%emt 0:00:03]} Kxh8 {[%emt 0:00:26]} 32. f8=Q+ {[%emt 0:00:03]} Kh7 {[%emt 0:00:02]} 33. Qf5+ {[%emt 0:00:04]} Qg6 {[%emt 0:00:10]} 34. Qxg6+ {[%emt 0:00:06]} Kxg6 {[%emt 0:00:02] Check Result:#9} 35. h4 {[%emt 0:00:02]} 1-0